[Event "Cattolica Chess Festival 2022"]
[Site "Cattolica"]
[Date "2022.06.05"]
[Round "2.4"]
[White "Padmini, Rout"]
[Black "Brunello, Sabino"]
[Result "1-0"]
[ECO "B50"]
[WhiteElo "2348"]
[BlackElo "2521"]
[Annotator "TA"]
[PlyCount "71"]
[EventDate "2022.06.04"]
[EventCountry "ITA"]
[SourceTitle "playchess.com"]
[Source "ChessBase"]
[SourceQuality "1"]
[TimeControl "5400+30"]

{[%evp 16,71,12,0,10,8,26,12,41,34,30,25,35,-37,-41,-35,-31,-24,27,15,22,0,0,0,100,92,103,83,172,117,197,165,155,157,167,152,201,197,197,189,202,182,198,184,304,165,165,165,165,164,203,182,227,216,438,278,748,336]} 1. e4 {[%emt 0:30:30]} c5 {[%emt 0:31:41]} 2. Nf3 {[%emt 0:00:14]} d6 {[%emt 0:00:21]} 3. c3 {[%emt 0:00:34]} Nf6 {[%emt 0:00:09]} 4. Be2 {[%emt 0:00:06]} g6 {[%emt 0:01:04]} 5. O-O {[%emt 0:00:28]} Bg7 {[%emt 0:00:03]} 6. Bb5+ {[%emt 0:01:24]} Bd7 {[%emt 0:02:02]} 7. Bxd7+ {[%emt 0:00:13]} Nbxd7 {[%emt 0:00:07]} 8. Re1 {[%emt 0:00:11]} O-O {[%emt 0:01:36]} 9. d4 {[%emt 0:00:12]} b5 {[%emt 0:02:35] [#] B50: Sicilian: 2...d6, Miscellaneous.} 10. e5 $146 {[%emt 0:05:32]} ({Predecessor:} 10. Qe2 Qb6 11. a4 bxa4 12. Rxa4 cxd4 13. cxd4 Rab8 14. Nc3 Rfc8 15. Nd2 h5 16. h3 Rc6 17. Nc4 {1-0 (30) Gattenloehner,S (2222)-Kradolfer,D Winterthur 2003}) 10... Ne8 {[%emt 0:00:25]} 11. e6 {[%emt 0:02:08]} fxe6 {[%emt 0:00:10] The position is equal.} 12. Rxe6 {[%emt 0:00:42]} Nc7 {[%emt 0:09:26]} 13. Re1 {[%emt 0:01:11]} e5 {[%emt 0:03:57]} 14. dxc5 {[%emt 0:02:16]} (14. Bg5 $14 Bf6 15. Bxf6 Qxf6 16. Nbd2) 14... Nxc5 $15 {[%emt 0:00:09]} 15. Be3 {[%emt 0:06:11]} N5e6 {[%emt 0:04:17]} 16. a4 {[%emt 0:00:42]} d5 {[%emt 0:06:02]} (16... b4 $142) 17. axb5 $11 {[%emt 0:00:33]} Nxb5 {[%emt 0:08:23]} 18. Na3 {[%emt 0:00:14][%cal Bb1a3,Ba3c2,Bc2d4][%mdl 32]} (18. Ng5 $5 Nxg5 19. Bxg5 $11) 18... Nbc7 {[%emt 0:00:21]} 19. Nc2 {[%emt 0:00:47]} d4 {[%emt 0:00:44]} (19... a5 $11) 20. cxd4 $16 {[%emt 0:01:23] Black is on the road to losing.} exd4 {[%emt 0:01:51]} 21. Ncxd4 {[%emt 0:02:55]} Nf4 {[%emt 0:00:58]} (21... Nxd4 $16 22. Nxd4 (22. Bxd4 Rxf3 23. Qxf3 Bxd4 $11) 22... Qd7) 22. Ra3 {[%emt 0:08:29]} (22. Bxf4 $18 Rxf4 23. Qc1) 22... Kh8 {[%emt 0:02:50]} (22... Qd7 $16 23. Ra5 Nfd5) 23. g3 {[%emt 0:05:07]} Nfd5 {[%emt 0:00:20]} 24. Bg5 {[%emt 0:00:27] White is more active.} Qd6 {[%emt 0:01:35]} 25. Rd3 {[%emt 0:01:37][%cal Od4b5]} Rae8 {[%emt 0:03:11] [#]} (25... Qb6 $16 26. Rb3 Qa6) 26. Rxe8 $1 $18 {[%emt 0:02:21]} Rxe8 {[%emt 0:00:07] [#]} 27. Nb5 $1 {[%emt 0:02:45][%mdl 512]} Nxb5 {[%emt 0:00:44]} (27... Qc6 28. Nxc7) 28. Rxd5 {[%emt 0:00:09]} Qc6 {[%emt 0:00:04]} 29. Bf4 {[%emt 0:04:43] Ne5 is the strong threat.} Nc7 {[%emt 0:07:24]} (29... a6 $142 30. Be5 Kg8 31. Bxg7 Kxg7 32. Rd7+ Kg8) 30. Rd8 {[%emt 0:07:02]} (30. Rd7 $142 Ne6 31. Be5 (31. Rxa7 Nxf4 32. gxf4 Rf8 $14) 31... Bxe5 32. Nxe5) 30... Ne6 {[%emt 0:00:26]} 31. Rxe8+ {[%emt 0:00:57]} Qxe8 {[%emt 0:00:02]} 32. Be5 {[%emt 0:00:07]} Bxe5 {[%emt 0:00:11]} 33. Nxe5 {[%emt 0:00:06]} Qb5 {[%emt 0:00:17]} 34. Qd6 {[%emt 0:01:30] aiming for Nf7+.} Qb3 $2 {[%emt 0:00:44]} (34... Qe8 35. Ng4 Ng7) 35. Qd7 {[%emt 0:01:42]} a5 $2 {[%emt 0:01:55]} (35... Nf8 36. Qd4 (36. Qxa7 Qxb2 37. Qa8 Kg7 $16) 36... Kg8 37. Qxa7 Qd1+ 38. Kg2 Qd5+ 39. Nf3 Ne6 40. Qb8+ Kg7) 36. Ng4 {[%emt 0:05:04] Weighted Error Value: White=0.27 (precise) /Black=0.51} (36. Qe8+ $142 Kg7 37. Qf7+ Kh8 38. h3 Qd1+ 39. Kh2) 1-0

[Event "Cattolica Chess Festival 2022"]
[Site "Cattolica"]
[Date "2022.06.05"]
[Round "2.5"]
[White "Milikow, Yoav"]
[Black "Heinemann, Josefine"]
[Result "1-0"]
[ECO "E32"]
[WhiteElo "2410"]
[BlackElo "2300"]
[Annotator "TA"]
[PlyCount "75"]
[EventDate "2022.06.04"]
[EventCountry "ITA"]
[SourceTitle "playchess.com"]
[Source "ChessBase"]
[SourceQuality "1"]
[TimeControl "5400+30"]

{[%evp 13,75,0,0,0,0,0,0,0,0,0,0,0,0,0,0,0,0,0,0,0,11,16,12,11,21,-5,24,14,14,13,106,102,153,161,493,470,496,482,491,489,463,414,420,399,411,396,427,416,497,493,668,663,652,626,677,500,484,474,555,463,627,620,588,526]} 1. d4 {[%emt 0:30:04]} Nf6 {[%emt 0:30:04]} 2. c4 {[%emt 0:00:07]} e6 {[%emt 0:00:04]} 3. Nc3 {[%emt 0:00:05]} Bb4 {[%emt 0:00:04]} 4. Qc2 {[%emt 0:00:08]} O-O {[%emt 0:00:15]} 5. e4 {[%emt 0:00:31][%cal Be2e4,Be4e5][%mdl 32]} d5 {[%emt 0:00:31]} 6. e5 {[%emt 0:00:17]} Ne4 {[%emt 0:00:05]} 7. Bd3 {[%emt 0:00:22]} c5 {[%emt 0:00:25]} 8. Nf3 {[%emt 0:00:47] E32: Nimzo-Indian: Classical (4 Qc2): 4...0-0.} cxd4 {[%emt 0:00:17]} 9. Nxd4 {[%emt 0:00:12]} Nd7 {[%emt 0:00:22]} 10. Bf4 {[%emt 0:00:42] The position is equal.} Qh4 {[%emt 0:01:11]} 11. g3 {[%emt 0:00:14]} Qh5 {[%emt 0:01:08]} 12. O-O {[%emt 0:00:36]} g5 {[%emt 0:00:47]} 13. cxd5 {[%emt 0:00:30]} Bxc3 {[%emt 0:00:45]} 14. bxc3 {[%emt 0:00:15][%cal Od5e6]} exd5 {[%emt 0:00:05]} 15. Be3 {[%emt 0:01:04] [#] Strongly threatening f3.} Nxe5 {[%emt 0:06:01] Pair of Knights!} 16. f3 {[%emt 0:00:27] Against Ng4} ({Reject} 16. Bxe4 dxe4 17. Qxe4 Re8 $11) 16... Nxd3 {[%emt 0:03:19]} 17. Qxd3 {[%emt 0:01:46]} Nd6 {[%emt 0:07:49]} 18. g4 {[%emt 0:00:19] [#]} Qh6 $146 {[%emt 0:03:30]} ({Predecessor:} 18... Qg6 19. Qxg6+ fxg6 20. Bxg5 Re8 21. Bf4 Nc4 22. Nb5 Rf8 23. Bh6 Rd8 24. Rfe1 Kf7 25. Rad1 b6 26. Rd4 g5 27. Bxg5 Rd7 28. Rf4+ Kg6 29. Re6+ {1-0 (29) Caruana,F (2792)-Vidit,S (2727) Warsaw 2021}) 19. h4 {[%emt 0:07:38]} Qg6 {[%emt 0:03:42]} (19... Qxh4 {looks sharper.} 20. Kg2 Qh6 21. Rh1 Qg6) 20. Qxg6+ {[%emt 0:00:14]} fxg6 {[%emt 0:00:10]} 21. Bxg5 {[%emt 0:01:05]} Re8 {[%emt 0:00:10] Against Be7} (21... Rf7 $11 {keeps the balance.}) 22. Bf4 $16 {[%emt 0:01:34] White leaves nothing to chance now.} Rd8 {[%emt 0:04:27]} (22... Nc4 $142) 23. Rfe1 {[%emt 0:01:48] [#] Threatens to win with Bxd6. White is more active.} Ne8 {[%emt 0:07:33]} (23... Kf8 {is a better chance.} 24. Bg5 Re8) 24. Bg5 $18 {[%emt 0:00:26]} Bd7 {[%emt 0:01:02]} 25. Bxd8 {[%emt 0:00:13]} Rxd8 {[%emt 0:00:02]} 26. Re7 {[%emt 0:04:31]} Ng7 {[%emt 0:03:55]} 27. Re5 {[%emt 0:04:20]} Ba4 {[%emt 0:02:21]} 28. Rb1 {[%emt 0:01:29]} b6 {[%emt 0:02:11]} 29. h5 {[%emt 0:01:10]} gxh5 {[%emt 0:01:19]} 30. gxh5 {[%emt 0:00:08]} h6 {[%emt 0:00:03]} 31. Kf2 {[%emt 0:02:42] White is clearly winning.} Be8 {[%emt 0:01:27]} 32. Re7 {[%emt 0:02:30] Intending Rg1 and mate.} Rd7 {[%emt 0:01:01]} 33. Rbe1 {[%emt 0:00:33]} Kf8 {[%emt 0:00:20]} 34. Rxd7 {[%emt 0:00:24]} Bxd7 {[%emt 0:00:09]} 35. Re5 {[%emt 0:00:14]} Be8 {[%emt 0:00:29]} 36. Rxd5 {[%emt 0:01:00]} Bxh5 {[%emt 0:00:52]} 37. Rd7 {[%emt 0:00:33]} a5 {[%emt 0:00:54]} 38. Rd6 {[%emt 0:00:35][%csl LRb6,LRh6] Weighted Error Value: White=0.17 (very precise) /Black=0.38} 1-0

[Event "Cattolica Chess Festival 2022"]
[Site "Cattolica"]
[Date "2022.06.05"]
[Round "2.6"]
[White "Kolb, Tobias"]
[Black "Kjartansson, Gudmundur"]
[Result "1-0"]
[ECO "E54"]
[WhiteElo "2345"]
[BlackElo "2452"]
[Annotator "TA"]
[PlyCount "137"]
[EventDate "2022.06.04"]
[EventCountry "ITA"]
[SourceTitle "playchess.com"]
[Source "ChessBase"]
[SourceQuality "1"]
[TimeControl "5400+30"]

{[%evp 25,137,-20,-23,-19,0,-4,0,-38,-30,-37,-35,-30,-31,-26,-22,-18,26,27,27,27,27,27,23,7,7,7,14,20,104,91,296,224,238,244,258,254,249,185,202,214,223,212,225,214,262,262,262,262,262,262,268,262,279,279,279,279,279,279,279,279,279,279,279,279,298,298,1261,1096,762,836,2724,1812,29956,29957,29959,29958,29949,29951,9738,29943,29978,29976,29978,29966,29963,29957,29954,29950,29971,29973,29970,29973,29971,29951,29959,29963,12234,5065,1488,1305,29954,29955,29953,29945,12798,12791,29985,29985,29991,29992,29992,29991,29996,29992]} 1. d4 {[%emt 0:30:01]} Nf6 {[%emt 0:30:18]} 2. c4 {[%emt 0:00:04]} e6 {[%emt 0:00:03]} 3. Nc3 {[%emt 0:00:06]} Bb4 {[%emt 0:00:15]} 4. e3 {[%emt 0:00:05]} O-O {[%emt 0:00:12]} 5. Bd3 {[%emt 0:00:03]} d5 {[%emt 0:00:13]} 6. Nf3 {[%emt 0:00:04]} dxc4 {[%emt 0:00:31]} 7. Bxc4 {[%emt 0:00:10]} c5 {[%emt 0:00:05]} 8. O-O {[%emt 0:00:29]} cxd4 {[%emt 0:00:32]} 9. exd4 {[%emt 0:00:18]} b6 {[%emt 0:00:18]} 10. Bg5 {[%emt 0:00:04]} h6 {[%emt 0:00:43]} 11. Bh4 {[%emt 0:04:31]} Bb7 {[%emt 0:00:33]} 12. Rc1 {[%emt 0:00:32]} Nc6 {[%emt 0:01:40][%cal Bb8c6,Bc6e7,Be7d5][%mdl 32]} 13. Bd3 {[%emt 0:10:26]} Be7 {[%emt 0:02:18]} (13... Nxd4 $2 14. Nxd4 Rc8 15. Re1 $1 $18) 14. Bb1 {[%emt 0:02:13] E54: Nimzo-Indian: Rubinstein: Main Line: 7...dxc4 8 Bxc4.} Rc8 {[%emt 0:00:41]} 15. a3 {[%emt 0:03:30]} Nh5 {[%emt 0:02:38]} 16. Qd3 {[%emt 0:11:30][%csl Gb1][%cal Rd3h7] The position is equal.} g6 $1 {[%emt 0:00:23]} 17. Bxe7 {[%emt 0:00:53]} Nxe7 {[%emt 0:01:19]} 18. Qe3 {[%emt 0:15:43] Inhibits Nf4.} Bxf3 {[%emt 0:23:21]} 19. Qxf3 {[%emt 0:00:05]} Qxd4 {[%emt 0:00:10]} 20. Qb7 {[%emt 0:00:58][%csl LRa7,LRe7] [#]} Nd5 $146 {[%emt 0:14:33][%cal Rd5c3]} ({Predecessor:} 20... Qd6 21. Qxa7 Nf4 22. Qa6 Ned5 23. Ne4 Qd8 24. Qb5 Qh4 25. Ng3 Qg5 26. Rxc8 Rxc8 {0-1 (82) Noack,M-Schaefer,U DESC email 2005}) 21. Nb5 {[%emt 0:13:20]} Qxb2 {[%emt 0:02:47]} 22. Rxc8 {[%emt 0:00:05]} Qxb5 {[%emt 0:00:08]} 23. Rxf8+ {[%emt 0:00:54]} Kxf8 {[%emt 0:00:04]} 24. Be4 {[%emt 0:01:57] Threatens to win with Bxd5.} Nhf4 {[%emt 0:01:11] ...Ne2+ is the strong threat.} 25. g3 $36 {[%emt 0:01:00][%mdl 2048] White has good play.} (25. Qxa7 $2 Ne2+ 26. Kh1 Nec3 $19) 25... Ne2+ {[%emt 0:07:21] Pair of Knights!} 26. Kg2 {[%emt 0:00:03]} Ndc3 {[%emt 0:04:17]} (26... Nef4+ $11 27. gxf4 Nxf4+ 28. Kf3 (28. Kg1 Nh3+ 29. Kg2 Nf4+ 30. Kf3 Qxf1 $11) 28... Qxf1 29. Qb8+ Kg7 30. Qxf4 Qh3+ 31. Qg3 Qf1) 27. Bf3 {[%emt 0:00:49] Hoping for Bxe2.} (27. Bc6 Qa5 $14) 27... a5 $2 {[%emt 0:03:08] This costs Black the game.} (27... Qc5 $16) 28. Qc7 {[%emt 0:02:32] Black must now prevent Bxe2.} Qd3 {[%emt 0:03:54]} 29. Qxb6 {[%emt 0:01:51]} Nd4 {[%emt 0:00:20]} 30. Qd6+ {[%emt 0:00:11]} Kg8 {[%emt 0:00:50]} 31. Qf4 {[%emt 0:00:00]} e5 {[%emt 0:00:00]} 32. Qe3 {[%emt 0:00:00]} e4 {[%emt 0:00:00]} 33. Qxd3 {[%emt 0:00:00]} exd3 $18 {[%emt 0:00:00][%mdl 4096] Endgame KRB-KNN} 34. Rc1 $1 {[%emt 0:00:00]} Ndb5 {[%emt 0:00:00]} 35. a4 $1 {[%emt 0:00:00]} Nxa4 {[%emt 0:00:00]} 36. Rc8+ {[%emt 0:00:00]} Kg7 {[%emt 0:00:00] [#]} 37. Rd8 $1 {[%emt 0:00:00]} (37. Ra8 Nac3 38. Rxa5 d2 $15) 37... Nac3 {[%emt 0:00:00]} 38. Bc6 {[%emt 0:00:00]} ({Weaker is} 38. Rxd3 a4 $16) 38... a4 {[%emt 0:00:00] Strongly threatening ...a3.} 39. Bxb5 {[%emt 0:00:00]} ({And not} 39. Rxd3 a3 40. Bd5 a2 41. Bxa2 Nxa2 $17) 39... Nxb5 {[%emt 0:00:02]} 40. Rxd3 {[%emt 0:00:00] KR-KN} a3 {[%emt 0:00:22]} 41. Rd8 {[%emt 0:00:00]} ({Much less strong is} 41. Rd2 $6 Kf8 42. Kf3 Ke7 $18) 41... a2 {[%emt 0:04:34]} 42. Ra8 {[%emt 0:00:00]} Nc3 {[%emt 0:00:02]} 43. Kf3 {[%emt 0:00:00]} h5 {[%emt 0:01:25]} 44. Ke3 {[%emt 0:00:30]} h4 {[%emt 0:00:08]} 45. Kd3 {[%emt 0:01:10]} hxg3 $2 {[%emt 0:00:22]} (45... Nd5 46. gxh4 Nf4+ 47. Ke3 Ng2+ 48. Ke4 Nxh4 49. Rxa2 Nf5) 46. hxg3 {[%emt 0:00:46]} Nd5 {[%emt 0:00:22]} 47. Kd4 {[%emt 0:00:03]} Nf6 {[%emt 0:01:25]} 48. Rxa2 {[%emt 0:00:04] And now f3 would win.} Ng4 {[%emt 0:00:18]} 49. f3 {[%emt 0:00:42]} Nf6 {[%emt 0:00:28]} 50. Ke5 {[%emt 0:00:30]} Nd7+ {[%emt 0:00:38]} 51. Kd6 {[%emt 0:00:28]} Nf8 {[%emt 0:00:32]} 52. Ke7 {[%emt 0:01:08]} Nh7 {[%emt 0:00:29]} 53. Ra6 {[%emt 0:00:27]} g5 {[%emt 0:00:33]} 54. Rb6 {[%emt 0:01:55]} Nf8 {[%emt 0:00:14]} 55. Ke8 {[%emt 0:00:31]} Nh7 {[%emt 0:00:48]} 56. Rb5 {[%emt 0:01:40]} Nf6+ {[%emt 0:00:23]} 57. Ke7 {[%emt 0:00:04]} Ng8+ {[%emt 0:00:07]} 58. Kd6 {[%emt 0:00:02]} Kf6 {[%emt 0:00:48]} 59. Rb6 {[%emt 0:00:16]} g4 {[%emt 0:00:32]} 60. f4 {[%emt 0:00:45][%cal Bf3f4,Bf4f5][%mdl 32]} Kf5 {[%emt 0:00:40]} 61. Kd5 {[%emt 0:00:47]} (61. Rb8 $142 Nf6 62. Rb5+ Kg6 63. Rg5+ Kh6 64. Ke7) 61... Ne7+ {[%emt 0:00:30]} 62. Kd4 {[%emt 0:00:02]} f6 {[%emt 0:00:27]} 63. Rb5+ {[%emt 0:00:21]} Kg6 {[%emt 0:00:32] [#]} 64. Ke4 $1 {[%emt 0:00:10]} Ng8 {[%emt 0:00:30]} 65. f5+ {[%emt 0:00:34]} Kg7 {[%emt 0:00:31]} 66. Rb7+ {[%emt 0:00:16] White mates.} Kh6 {[%emt 0:00:27]} 67. Kf4 {[%emt 0:00:07]} Kh5 {[%emt 0:00:13]} 68. Rc7 {[%emt 0:00:31]} Nh6 {[%emt 0:00:10]} 69. Rg7 {[%emt 0:00:04] Weighted Error Value: White=0.05 (flawless) /Black=0.30} 1-0

[Event "Cattolica Chess Festival 2022"]
[Site "Cattolica"]
[Date "2022.06.05"]
[Round "2.7"]
[White "Souhardo Basak"]
[Black "Buksa, Nataliya"]
[Result "1/2-1/2"]
[ECO "C88"]
[WhiteElo "2357"]
[BlackElo "2406"]
[Annotator "TA"]
[PlyCount "104"]
[EventDate "2022.06.04"]
[EventCountry "ITA"]
[SourceTitle "playchess.com"]
[Source "ChessBase"]
[SourceQuality "1"]
[TimeControl "5400+30"]

{[%evp 20,104,29,24,29,20,20,21,19,5,8,0,3,0,0,0,0,0,0,-14,-6,-30,-15,-14,0,0,19,0,0,0,0,0,0,0,0,0,0,-1,1,-27,-5,-23,0,0,0,-11,-8,-25,-18,-19,0,0,10,16,16,6,20,30,10,0,0,0,3,0,4,9,2,0,0,0,0,0,0,0,0,0,0,0,0,0,0,0,0,0,18,1,4]} 1. e4 {[%emt 0:30:02]} e5 {[%emt 0:31:52]} 2. Nf3 {[%emt 0:00:13]} Nc6 {[%emt 0:00:04]} 3. Bb5 {[%emt 0:00:05]} a6 {[%emt 0:00:04]} 4. Ba4 {[%emt 0:00:05]} Nf6 {[%emt 0:00:03]} 5. O-O {[%emt 0:00:06]} Be7 {[%emt 0:00:02]} 6. Re1 {[%emt 0:00:06]} b5 {[%emt 0:00:03]} 7. Bb3 {[%emt 0:00:04]} O-O {[%emt 0:00:04]} 8. a4 {[%emt 0:01:26]} Bb7 {[%emt 0:00:05]} 9. d3 {[%emt 0:00:18]} d6 {[%emt 0:00:04]} 10. Nbd2 {[%emt 0:00:07]} Nd7 {[%emt 0:00:11]} 11. c3 {[%emt 0:02:20]} Nc5 {[%emt 0:00:32] C88: Closed Ruy Lopez: Anti-Marshall Systems.} 12. Bc2 {[%emt 0:05:55]} Nxa4 {[%emt 0:00:56]} 13. Bxa4 {[%emt 0:00:23]} bxa4 {[%emt 0:00:03]} 14. Qxa4 {[%emt 0:00:22]} Kh8 {[%emt 0:01:15]} 15. d4 {[%emt 0:05:56]} exd4 {[%emt 0:01:33]} 16. cxd4 {[%emt 0:00:40]} d5 {[%emt 0:00:04]} 17. e5 {[%emt 0:04:53]} Nb4 {[%emt 0:01:13]} 18. Qd1 {[%emt 0:06:21]} Bc8 {[%emt 0:16:36][%cal Bb7c8,Bc8f5,Bf5g6][%mdl 32] [#]} 19. Nf1 $146 {[%emt 0:11:32]} ({Predecessor:} 19. Re3 c5 20. Rc3 Qb6 21. Nf1 Nc6 22. dxc5 Bxc5 23. Qxd5 Bxf2+ 24. Kh1 Bb7 25. Qb3 Qxb3 {½-½ (25) Chupin,V (2452)-Schwetlick,T (2398) ICCF email 2004}) 19... Bf5 {[%emt 0:01:30]} 20. Ne3 {[%emt 0:01:44] Prevents Nc2.} Bg6 {[%emt 0:00:05]} 21. b3 {[%emt 0:03:49]} Nd3 {[%emt 0:24:19]} 22. Re2 {[%emt 0:02:11]} a5 {[%emt 0:01:26]} 23. Rd2 {[%emt 0:06:55]} Nxc1 {[%emt 0:01:19]} 24. Rxc1 {[%emt 0:00:42]} Qd7 {[%emt 0:04:13]} 25. Ne1 {[%emt 0:02:03]} Ba3 {[%emt 0:04:29]} 26. Ra1 {[%emt 0:00:48]} Bb4 {[%emt 0:00:08] A strong pair of Bishops.} 27. Rda2 {[%emt 0:04:55]} Qb5 {[%emt 0:00:43] Inhibits Nd3.} 28. Rc1 {[%emt 0:01:55]} Rac8 {[%emt 0:01:01]} 29. h4 {[%emt 0:06:42]} h6 {[%emt 0:02:30]} 30. h5 {[%emt 0:00:11]} Bh7 {[%emt 0:00:03]} (30... Be4 $5 {[%cal Rc7c5]}) 31. N1c2 {[%emt 0:00:00]} Be7 {[%emt 0:00:00]} 32. Qd2 {[%emt 0:00:00]} Qxb3 {[%emt 0:00:00]} 33. Rxa5 {[%emt 0:00:00]} c6 {[%emt 0:00:00]} 34. Ra7 {[%emt 0:00:00]} Bg5 {[%emt 0:00:00]} 35. Nb4 {[%emt 0:00:00]} Be4 {[%emt 0:00:00]} 36. Qc3 {[%emt 0:00:00]} ({Avoid the trap} 36. Rxc6 $2 Qb1+ 37. Qd1 (37. Kh2 {leads to mate.} Bf4+ 38. Kh3 Qh1+ 39. Kg4 Bg5) 37... Qxb4 $19) (36. Nxc6 $2 Qb6 37. Qa5 Rxc6 $19) 36... Qxc3 {[%emt 0:00:00]} 37. Rxc3 {[%emt 0:00:00]} Rb8 {[%emt 0:00:00]} 38. Ra4 {[%emt 0:00:00]} Rb7 {[%emt 0:00:37]} 39. f3 {[%emt 0:01:13] The position is equal.} ({Much worse is} 39. Rxc6 Bxe3 40. fxe3 Rfb8 $17) 39... c5 $1 {[%emt 0:08:31]} 40. Nbxd5 {[%emt 0:00:43]} Bxd5 {[%emt 0:01:54]} 41. Nxd5 {[%emt 0:00:04]} cxd4 {[%emt 0:00:03]} 42. Rxd4 {[%emt 0:00:28] Hoping for f4.} Rd8 $1 {[%emt 0:00:03]} 43. Rcd3 {[%emt 0:05:25]} Rbd7 $1 {[%emt 0:00:03]} 44. Kh2 {[%emt 0:00:54]} Bc1 $1 {[%emt 0:03:28]} 45. Rd1 {[%emt 0:00:45]} Bb2 {[%emt 0:00:31]} 46. R4d3 {[%emt 0:00:03] Strongly threatening f4.} Bxe5+ {[%emt 0:00:04]} 47. Kh3 {[%emt 0:00:11]} Bb8 {[%emt 0:01:12]} 48. Nf4 {[%emt 0:00:29]} Rxd3 {[%emt 0:00:18]} 49. Rxd3 {[%emt 0:00:02]} Re8 {[%emt 0:00:37]} 50. g3 {[%emt 0:00:41]} Kh7 {[%emt 0:00:57]} 51. Rd7 {[%emt 0:00:12]} Kg8 {[%emt 0:00:19]} 52. Nd3 {[%emt 0:00:18]} Kf8 {[%emt 0:01:02] An interesting draw.  Weighted Error Value: White=0.05 (flawless) /Black=0.03 (flawless)} 1/2-1/2

[Event "Cattolica Chess Festival 2022"]
[Site "Cattolica"]
[Date "2022.06.05"]
[Round "2.8"]
[White "Schmider, Niklas"]
[Black "Sala, Giulia"]
[Result "1-0"]
[ECO "C60"]
[WhiteElo "2393"]
[BlackElo "1863"]
[Annotator "TA"]
[PlyCount "75"]
[EventDate "2022.06.04"]
[EventCountry "ITA"]
[SourceTitle "playchess.com"]
[Source "ChessBase"]
[SourceQuality "1"]
[TimeControl "5400+30"]

{[%evp 10,75,24,18,42,49,32,20,26,23,19,19,20,7,10,0,0,0,0,0,0,0,0,-5,36,22,41,28,44,60,34,8,8,13,18,0,17,0,0,0,0,0,42,52,174,172,294,294,279,266,829,793,667,643,664,597,906,845,937,897,916,865,975,910,5791,5700,29997,29998]} 1. e4 {[%emt 0:30:53]} e5 {[%emt 0:30:04]} 2. Nf3 {[%emt 0:00:05]} Nc6 {[%emt 0:00:04]} 3. Bb5 {[%emt 0:00:04]} Nge7 {[%emt 0:00:06]} 4. c3 {[%emt 0:00:33][%cal Bc2c3,Bc3d4,Bd4d5][%mdl 32]} g6 {[%emt 0:00:10]} 5. d4 {[%emt 0:01:23]} exd4 {[%emt 0:00:26]} 6. cxd4 {[%emt 0:00:07]} a6 {[%emt 0:00:08] C60: Ruy Lopez: Unusual Black 3rd moves and 3...g6.} 7. Ba4 {[%emt 0:00:08]} b5 {[%emt 0:00:06]} 8. Bb3 {[%emt 0:01:37]} Bg7 {[%emt 0:00:40] The position is equal.} 9. d5 {[%emt 0:03:56]} Na5 {[%emt 0:00:21]} 10. Bd2 {[%emt 0:01:18]} Nxb3 {[%emt 0:00:22]} ({Much less strong is} 10... Bxb2 11. Bxa5 Bxa1 12. Nc3 (12. d6 Nc6 $11) 12... Bxc3+ 13. Bxc3 $16) 11. axb3 {[%emt 0:03:04][%cal Od5d6]} Bxb2 {[%emt 0:05:22] [#]} 12. Nc3 $1 {[%emt 0:04:21][%cal Bb1c3,Bc3b5,Bb5c7][%mdl 32] [#] Strongly threatening Ra2.} Bxa1 $146 {[%emt 0:03:48]} (12... b4 13. Na4) ({Predecessor:} 12... b4 13. Na4 Bg7 14. Bxb4 d6 15. Rc1 a5 16. Bc3 Bxc3+ 17. Nxc3 Ba6 18. Qd4 O-O {½-½ (39) Yoo,C (2455)-Khanin,S (2482) Chess.com INT 2020}) 13. Qxa1 {[%emt 0:00:08] Hoping for Nxb5.} O-O {[%emt 0:04:28]} 14. Bh6 {[%emt 0:02:32]} f6 {[%emt 0:03:05]} 15. Bxf8 {[%emt 0:47:51]} Qxf8 {[%emt 0:00:30]} 16. Nxb5 {[%emt 0:00:00][%mdl 64] [#] Pin} c6 {[%emt 0:07:39]} (16... Bb7 $5 {[%cal Ra6b5]} 17. Nxc7 Rc8 $11) 17. Nc7 {[%emt 0:00:00]} Ra7 {[%emt 0:01:55]} 18. d6 {[%emt 0:00:00] Qd4 is the strong threat.} Nf5 {[%emt 0:06:05] Prevents Qd4.} 19. exf5 {[%emt 0:00:00]} Qxd6 {[%emt 0:00:16]} 20. O-O {[%emt 0:00:00] aiming for Ne8.} Rxc7 {[%emt 0:01:28]} 21. fxg6 {[%emt 0:00:00]} hxg6 {[%emt 0:00:12]} 22. Nh4 {[%emt 0:00:00]} Kf7 {[%emt 0:05:07]} 23. Re1 $36 {[%emt 0:00:00][%mdl 3072] And now Qc3 would win. White has compensation. Black is under pressure.} Qb4 {[%emt 0:01:56][%csl LRb3,LRh4] Against Qc3} 24. g3 {[%emt 0:00:00]} d5 {[%emt 0:03:41]} 25. Qb1 {[%emt 0:00:00]} f5 {[%emt 0:01:38]} 26. Qc1 {[%emt 0:00:00]} Qd6 {[%emt 0:04:42] This move loses the game for Black.} (26... f4 $14) 27. Qh6 $18 {[%emt 0:00:00]} Qf6 {[%emt 0:01:01]} (27... Re7 $142 28. Rxe7+ Kxe7) 28. Nf3 {[%emt 0:00:00] Threatens to win with Ng5+.} ({Not} 28. Qh7+ Qg7 29. Qxg7+ Kxg7 $17) 28... Re7 {[%emt 0:02:06]} 29. Qh7+ {[%emt 0:00:00]} Kf8 $2 {[%emt 0:06:30]} (29... Ke8 30. Rxe7+ Qxe7 31. Qxg6+ Kd7) 30. Rxe7 {[%emt 0:00:00][%mdl 64] Deflection} Qxe7 {[%emt 0:00:07][%mdl 4096] Endgame KQB-KQN} 31. Qh8+ {[%emt 0:00:00][%mdl 64] Skewer} Kf7 {[%emt 0:00:30]} 32. Qxc8 {[%emt 0:00:00]} c5 {[%emt 0:00:07]} 33. Qc6 {[%emt 0:00:00]} d4 {[%emt 0:00:34]} 34. Qxa6 {[%emt 0:00:00]} Kg7 {[%emt 0:00:08]} 35. Qc4 {[%emt 0:00:05]} Qe4 {[%emt 0:01:03]} 36. Ng5 {[%emt 0:00:12] Qf7+ would kill now.} Qb1+ {[%emt 0:00:16]} 37. Kg2 {[%emt 0:00:09] White threatens Qf7+ and mate.} d3 {[%emt 0:00:15]} 38. Qf7+ {[%emt 0:00:09] Weighted Error Value: White=0.04 (flawless) /Black=0.51} 1-0